bitfinex-derivatives/quotes_SOLF0:USTF0_20250730
["timestamp","ask_amount","ask_price","bid_price","bid_amount"]
[1753835265011,3.21,180.67,180.63,8.5867]
[1753835267217,3.21,180.72,180.64,3.05]
[1753835267411,3.21,180.7,180.64,3.05]
[1753835267717,3.21,180.67,180.65,5.5363]
[1753835267912,3.21,180.69,180.65,8.5863]
[1753835268214,3.21,180.69,180.65,5.5363]
[1753835268606,8.7452,180.69,180.65,5.5363]
[1753835268916,3.21,180.68,180.56,3.05]
[1753835269111,3.21,180.66,180.56,3.05]
[1753835269416,3.21,180.66,180.62,5.537]
[1753835269911,3.21,180.66,180.63,5.5369]
[1753835273113,3.21,180.65,180.64,8.5866]
[1753835274115,3.21,180.65,180.63,5.5369]
[1753835274316,3.21,180.64,180.63,8.5869]
[1753835275423,3.21,180.66,180.65,3.05]
[1753835275626,3.21,180.68,180.65,3.05]
[1753835275929,3.21,180.7,180.65,3.05]
[1753835276215,4.41618012,180.69,180.55,11.0783]
[1753835276422,7.62618012,180.68,180.66,3.05]
[1753835276723,3.21,180.68,180.66,3.05]
[1753835277425,3.21,180.68,180.56,3.05]
[1753835277626,3.21,180.71,180.56,3.05]
[1753835277815,4.42129848,180.7,180.56,3.05]
[1753835278019,7.63129848,180.69,180.54,119.1]
[1753835278219,4.57527981,180.73,180.55,16.64]
[1753835278420,3.21,180.71,180.56,3.05]
[1753835278619,3.21,180.71,180.55,16.64]
[1753835278620,4.42341503,180.7,180.57,11.0775]
[1753835278826,3.21,180.7,180.58,3.05]
[1753835280325,3.21,180.7,180.67,3.05]
[1753835280523,3.21,180.69,180.68,3.05]
[1753835281026,3.21,180.69,180.68,8.5854]
[1753835281216,3.21,180.69,180.68,5.5354]
[1753835282526,3.21,180.71,180.7,5.5346]
[1753835282828,3.21,180.71,180.7,8.5846]
[1753835283824,3.21,180.71,180.6,118.84]
[1753835284024,3.21,180.71,180.61,3.05]
[1753835284226,8.7454,180.69,180.61,3.05]
[1753835284427,3.21,180.68,180.61,3.05]
[1753835285423,3.21,180.68,180.6,118.84]
[1753835285624,3.21,180.71,180.61,3.05]
[1753835285833,3.21,180.69,180.61,3.05]
[1753835286031,3.21,180.67,180.64,5.5365]
[1753835286333,3.21,180.67,180.61,3.05]
[1753835286631,3.21,180.67,180.66,5.536]
[1753835287530,3.21,180.69,180.65,5.5363]
[1753835287731,3.21,180.69,180.6,118.84]
[1753835288029,3.21,180.69,180.61,3.05]
[1753835288325,3.21,180.69,180.66,3.05]
[1753835288529,3.21,180.74,180.66,3.05]
[1753835288729,4.42519023,180.73,180.66,3.05]
[1753835288926,3.21,180.71,180.68,5.5352]
[1753835293034,3.21,180.71,180.69,5.535]
[1753835293229,3.21,180.71,180.6,118.84]
[1753835293436,3.21,180.71,180.61,3.05]
[1753835293734,3.21,180.71,180.69,5.5349]
[1753835293935,3.14,180.72,180.69,5.5349]
[1753835294137,3.14,180.7,180.69,5.5349]
[1753835294734,3.14,180.7,180.64,2.99]
[1753835296538,3.14,180.7,180.68,5.5352]
[1753835296738,3.14,180.69,180.68,8.5252]
[1753835298035,3.14,180.72,180.69,5.535]
[1753835298338,3.14,180.7,180.69,5.535]
[1753835299329,3.14,180.7,180.67,5.5356]
[1753835303534,3.14,180.7,180.68,5.5353]
[1753835304836,3.14,180.7,180.68,8.5253]
[1753835306539,3.14,180.7,180.69,5.5351]
[1753835306840,3.14,180.7,180.69,8.5251]
[1753835307236,3.14,180.7,180.68,5.5353]
[1753835312137,3.14,180.7,180.63,2.99]
[1753835312342,3.14,180.68,180.63,2.99]
[1753835313246,8.6755,180.68,180.65,5.536]
[1753835313446,3.14,180.67,180.65,5.536]
[1753835315146,3.14,180.72,180.66,2.99]
[1753835315345,9.0039606,180.72,180.66,2.99]
[1753835315547,5.535,180.7,180.67,5.5356]
[1753835315746,3.14,180.68,180.6,2.99]
[1753835316342,3.14,180.66,180.6,2.99]
[1753835316542,4.42790183,180.65,180.6,2.99]
[1753835316738,3.14,180.64,180.61,5.5373]
[1753835318249,3.14,180.64,180.59,118.6]
[1753835318645,5.5369,180.64,180.6,5.5376]
[1753835318847,3.14,180.63,180.6,5.5376]
[1753835319047,3.14,180.63,180.6,2.99]
[1753835319248,3.14,180.62,180.61,2.99]
[1753835320144,4.57527981,180.69,180.61,8.5276]
[1753835320351,4.57527981,180.69,180.61,2.99]
[1753835320352,3.14,180.67,180.61,2.99]
[1753835320651,3.14,180.65,180.61,2.99]
[1753835321450,3.14,180.64,180.61,2.99]
[1753835322145,3.14,180.64,180.63,8.5268]
[1753835323651,3.14,180.69,180.63,2.99]
[1753835323951,3.06,180.67,180.56,121.65]
[1753835324152,3.06,180.64,180.57,3.05]
[1753835325256,3.06,180.68,180.57,3.05]
[1753835325558,3.06,180.65,180.55,3.05]
[1753835325757,3.06,180.6,180.55,3.05]
[1753835326559,3.06,180.6,180.57,5.5387]
[1753835327358,3.06,180.6,180.58,5.5384]
[1753835327757,4.57527981,180.67,180.51,118.6]
[1753835327960,3.06,180.6,180.59,3.05]
[1753835329058,3.06,180.62,180.61,5.5374]
[1753835329261,3.06,180.62,180.61,8.5874]
[1753835329661,3.06,180.62,180.61,5.5374]
[1753835330065,3.06,180.62,180.59,5.5382]
[1753835330466,8.5973,180.62,180.58,5.5384]
[1753835330666,3.06,180.61,180.58,5.5384]
[1753835331161,5.5377,180.61,180.58,5.5384]
[1753835331370,3.06,180.6,180.58,5.5384]
[1753835331659,3.06,180.6,180.59,5.5382]
[1753835332755,4.57527981,180.68,180.6,5.5378]
[1753835332956,3.06,180.61,180.6,5.5378]
[1753835334766,3.06,180.61,180.59,5.5381]
[1753835336858,3.06,180.62,180.6,5.5379]
[1753835338864,5.5371,180.63,180.6,5.5379]
[1753835339064,3.06,180.61,180.6,5.5379]
[1753835339266,3.06,180.61,180.6,8.5879]
[1753835339657,3.06,180.61,180.59,8.5881]
[1753835339966,3.06,180.61,180.51,118.6]
[1753835339967,3.06,180.61,180.58,3.05]
[1753835340167,3.06,180.61,180.58,8.5883]
[1753835340368,3.06,180.61,180.51,118.62]
[1753835340666,3.06,180.61,180.52,3.05]
[1753835340865,3.06,180.68,180.59,5.5379]
[1753835341168,3.06,180.66,180.59,5.5379]
[1753835341368,3.06,180.64,180.59,5.5379]
[1753835341563,3.06,180.62,180.59,8.5879]
[1753835342874,3.06,180.62,180.59,5.5379]
[1753835343072,3.06,180.62,180.6,3.05]
[1753835343272,3.06,180.61,180.6,3.05]
[1753835345469,3.06,180.61,180.6,8.5879]
[1753835345872,3.06,180.68,180.6,3.05]
[1753835346171,3.06,180.68,180.51,118.62]
[1753835346172,3.06,180.66,180.61,3.05]
[1753835346373,3.06,180.65,180.61,3.05]
[1753835347081,4.57527981,180.7,180.52,3.05]
[1753835347082,3.06,180.69,180.52,3.05]
[1753835347269,3.06,180.67,180.52,3.05]
[1753835347676,3.06,180.67,180.53,11.0796]
[1753835347871,3.06,180.67,180.54,3.05]
[1753835348573,3.06,180.67,180.64,5.5366]
[1753835349680,3.06,180.67,180.65,5.5363]
[1753835350275,3.06,180.7,180.64,3.05]
[1753835350480,3.06,180.68,180.65,3.05]
[1753835350980,3.06,180.68,180.55,11.0788]
[1753835351282,3.06,180.69,180.65,5.5361]
[1753835351776,3.06,180.68,180.65,8.5861]
[1753835351977,3.06,180.68,180.66,5.536]
[1753835352883,3.06,180.72,180.67,5.5357]
[1753835353177,4.43074109,180.71,180.66,3.05]
[1753835353380,4.43074109,180.7,180.66,3.05]
[1753835353680,5.5341,180.73,180.69,5.5351]
[1753835353872,4.43159396,180.72,180.69,5.5351]
[1753835354071,3.03,180.7,180.69,5.5351]
[1753835354274,7.46159396,180.7,180.69,5.5351]
[1753835354977,3.03,180.7,180.69,8.5851]
[1753835357380,4.57527981,180.75,180.52,29.00650366]
[1753835357381,4.57527981,180.75,180.55,19.69]
[1753835357578,4.43302705,180.74,180.56,3.05]
[1753835357779,3.03,180.73,180.57,3.05]
[1753835357979,3.03,180.73,180.61,3.05]
[1753835360180,4.43054016,180.72,180.61,3.05]
[1753835360381,3.03,180.71,180.61,3.05]
[1753835361687,8.5647,180.71,180.66,5.536]
[1753835361886,3.03,180.7,180.66,5.536]
[1753835363788,3.03,180.7,180.67,5.5357]
[1753835364987,3.03,180.69,180.56,85.63999259]
[1753835365184,3.03,180.69,180.57,3.05]
[1753835365790,3.03,180.69,180.65,5.5361]
[1753835365978,3.03,180.69,180.62,3.05]
[1753835366383,3.03,180.69,180.66,5.5358]
[1753835366684,3.03,180.69,180.63,3.05]
[1753835367177,3.03,180.69,180.66,5.5358]
[1753835369791,3.03,180.69,180.67,5.5357]
[1753835370994,8.5652,180.69,180.63,3.05]
[1753835371187,3.03,180.68,180.56,85.63999259]
[1753835371388,3.03,180.68,180.57,3.05]
[1753835371693,3.03,180.68,180.66,5.5358]
[1753835373998,4.57527981,180.75,180.57,11.0775]
[1753835374191,3.03,180.7,180.58,3.05]
[1753835374691,3.03,180.7,180.67,5.5356]
[1753835374891,3.03,180.7,180.65,3.05]
[1753835375091,3.03,180.7,180.66,3.05]
[1753835375687,5.5345,180.71,180.66,3.05]
[1753835375886,3.03,180.7,180.67,3.05]
[1753835376096,3.03,180.7,180.58,3.05]
[1753835376494,3.03,180.72,180.67,3.05]
[1753835376795,3.03,180.71,180.67,3.05]
[1753835376997,5.5338,180.74,180.7,5.5346]
[1753835377190,3.03,180.71,180.68,3.05]
[1753835377591,5.5332,180.76,180.72,5.5341]
[1753835377788,3.03,180.73,180.72,5.5341]
[1753835377987,3.03,180.73,180.7,3.05]
[1753835378192,3.03,180.72,180.68,3.05]
[1753835378398,3.03,180.72,180.71,3.05]
[1753835379096,3.03,180.72,180.71,8.5845]
[1753835379598,3.03,180.76,180.73,5.5338]
[1753835379793,3.03,180.74,180.64,3.05]
[1753835380103,3.03,180.72,180.64,3.05]
[1753835380599,3.03,180.72,180.69,5.535]
[1753835381108,3.03,180.72,180.66,3.05]
[1753835381701,3.03,180.72,180.7,5.5346]
[1753835384007,3.03,180.72,180.71,5.5345]
[1753835386506,3.03,180.72,180.7,5.5348]
[1753835386704,3.03,180.72,180.67,3.04]
[1753835386905,3.03,180.72,180.71,5.5345]
[1753835387501,3.01,180.71,180.7,5.5347]
[1753835388408,3.01,180.71,180.61,11.0751]
[1753835388616,3.01,180.71,180.62,3.04]
[1753835389011,4.43672065,180.7,180.62,3.04]
[1753835389214,3.01,180.71,180.62,3.04]
[1753835389521,3.01,180.69,180.62,3.04]
[1753835390220,3.01,180.68,180.62,3.04]
[1753835391211,5.5358,180.67,180.63,5.5367]
[1753835391419,7.44800829,180.66,180.56,3.04]
[1753835391711,3.01,180.65,180.56,3.04]
[1753835392119,3.01,180.65,180.63,5.5369]
[1753835394716,3.01,180.65,180.64,5.5367]
[1753835395321,4.43887518,180.66,180.56,3.04]
[1753835395510,3.01,180.64,180.56,3.04]
[1753835395713,3.01,180.64,180.61,5.5374]
[1753835396616,3.01,180.64,180.62,5.5372]
[1753835398019,3.01,180.64,180.63,5.537]
[1753835398820,3.01,180.64,180.62,5.5372]
[1753835399318,3.01,180.64,180.62,5.537]
[1753835399710,3.01,180.64,180.62,8.577]
[1753835399914,3.01,180.64,180.62,3.04]
[1753835400423,3.01,180.64,180.55,3.04]
[1753835401520,3.01,180.64,180.61,5.5373]
[1753835402517,3.01,180.68,180.54,118.5]
[1753835402711,7.58527981,180.66,180.55,3.04]
[1753835402913,5.5373,180.62,180.55,3.04]
[1753835403115,3.01,180.61,180.58,5.5383]
[1753835403616,3.01,180.6,180.55,5.5393]
[1753835403818,4.43357917,180.59,180.53,3.04]
[1753835404018,3.01,180.58,180.53,3.04]
[1753835404214,6.17295273,180.65,180.43,372.16]
[1753835404215,3.01,180.56,180.43,372.16]
[1753835404521,3.01,180.56,180.44,3.04]
[1753835404917,3.01,180.56,180.51,5.5405]
[1753835405118,3.01,180.56,180.49,3.04]
[1753835405526,3.01,180.6,180.49,3.04]
[1753835405823,3.01,180.58,180.49,3.04]
[1753835406825,3.01,180.56,180.49,3.04]
[1753835407231,3.01,180.56,180.43,372.16]
[1753835407418,3.01,180.56,180.44,3.04]
[1753835407620,4.41916935,180.55,180.44,3.04]
[1753835407820,3.01,180.54,180.44,3.04]
[1753835408121,3.01,180.52,180.44,3.04]
[1753835408322,3.01,180.52,180.38,119.16]
[1753835408520,3.01,180.48,180.4,3.04]
[1753835409027,3.01,180.44,180.35,119.2]
[1753835409219,3.01,180.44,180.36,3.04]
[1753835409421,127.01,180.44,180.41,5.5436]
[1753835409719,3.01,180.42,180.4,3.04]
[1753835409924,3.01,180.42,180.41,5.5437]
[1753835410122,3.01,180.52,180.41,3.04]
[1753835410323,3.01,180.5,180.41,3.04]
[1753835410519,3.01,180.48,180.36,3.04]
[1753835410920,5.5437,180.41,180.25,3.04]
[1753835411123,3.01,180.4,180.27,3.04]
[1753835411429,3.01,180.4,180.29,3.04]
[1753835412331,3.01,180.4,180.39,8.5843]
[1753835412923,3.01,180.48,180.38,5.5446]
[1753835413123,3.01,180.46,180.35,3.04]
[1753835413325,3.01,180.44,180.35,3.04]
[1753835413521,3.01,180.44,180.39,5.5441]
[1753835413823,3.01,180.44,180.37,3.04]
[1753835414331,3.01,180.44,180.34,3.05]
[1753835414928,5.541,180.5,180.34,3.05]
[1753835415118,3.2,180.48,180.34,3.05]
[1753835415929,3.2,180.48,180.47,5.5419]
[1753835416532,3.2,180.48,180.46,5.5422]
[1753835416727,3.2,180.48,180.34,11.0916]
[1753835416928,3.2,180.48,180.35,3.05]
[1753835417124,3.2,180.48,180.46,5.542]
[1753835417526,3.2,180.54,180.35,3.05]
[1753835417724,3.2,180.52,180.35,3.05]
[1753835418232,3.2,180.52,180.45,3.05]
[1753835418935,3.2,180.52,180.35,3.05]
[1753835419130,3.2,180.52,180.37,3.05]
[1753835419627,3.2,180.49,180.37,3.05]
[1753835420022,3.2,180.49,180.45,5.5422]
[1753835420429,3.2,180.54,180.42,3.05]
[1753835420632,4.40972033,180.53,180.42,3.05]
[1753835420830,5.5412,180.5,180.45,5.5425]
[1753835421130,3.2,180.49,180.45,5.5425]
[1753835421332,5.5417,180.48,180.39,3.05]
[1753835421635,3.2,180.47,180.39,3.05]
[1753835421833,3.2,180.47,180.45,5.5425]
[1753835422132,3.2,180.49,180.45,3.05]
[1753835422831,3.2,180.49,180.34,130.5116]
[1753835423031,3.2,180.47,180.43,3.05]
[1753835423226,3.2,180.47,180.44,3.05]
[1753835423434,3.2,180.47,180.45,5.5425]
[1753835423626,3.2,180.46,180.44,3.05]
[1753835423827,5.5407,180.51,180.47,5.5418]
[1753835424129,5.5404,180.52,180.34,130.5116]
[1753835424320,124.0,180.55,180.46,5.5419]
[1753835424523,5.5407,180.51,180.46,5.5419]
[1753835424719,124.0,180.55,180.34,130.5116]
[1753835424922,8.98116509,180.54,180.41,5.5436]
[1753835425126,5.5421,180.47,180.31,119.38]
[1753835425524,4.57527981,180.54,180.41,5.5435]
[1753835425833,8.98051256,180.54,180.31,119.38]
[1753835426137,5.5416,180.48,180.43,5.5431]
[1753835426522,4.57527981,180.54,180.31,119.38]
[1753835426723,5.5413,180.49,180.31,119.38]
[1753835426924,4.57527981,180.54,180.31,119.38]
[1753835427131,8.9819325,180.54,180.31,119.38]
[1753835427328,5.541,180.5,180.32,11.0929]
[1753835427532,124.0,180.55,180.31,119.38]
[1753835427835,5.5401,180.53,180.31,119.38]
[1753835428430,5.5401,180.53,180.34,11.0913]
[1753835428635,5.5404,180.52,180.34,11.0913]
[1753835428828,3.2,180.51,180.35,3.05]
[1753835430631,3.2,180.51,180.37,3.05]
[1753835430829,3.2,180.51,180.38,3.05]
[1753835431232,3.2,180.51,180.47,5.5416]
[1753835431431,3.2,180.51,180.44,3.05]
[1753835432336,3.2,180.51,180.47,5.5417]
[1753835432534,3.2,180.51,180.44,3.05]
[1753835434432,3.2,180.51,180.48,5.5415]
[1753835434630,3.2,180.51,180.44,3.05]
[1753835435339,3.2,180.51,180.49,5.541]
[1753835435641,3.2,180.51,180.45,3.05]
[1753835437241,3.2,180.51,180.49,5.541]
[1753835437843,3.2,180.51,180.5,5.5409]
[1753835438036,3.2,180.54,180.41,3.05]
[1753835438444,3.2,180.54,180.52,5.5403]
[1753835440141,3.2,180.54,180.53,5.54]
[1753835440544,3.2,180.54,180.41,11.0873]
[1753835440745,3.2,180.54,180.52,5.5402]
[1753835441345,3.2,180.54,180.51,5.5406]
[1753835442044,3.2,180.54,180.52,5.5402]
[1753835443146,3.2,180.54,180.53,5.54]
[1753835443740,4.57527981,180.6,180.56,5.5389]
[1753835443941,372.22,180.62,180.56,5.5389]
[1753835443942,4.42318453,180.59,180.56,5.5389]
[1753835444145,4.42318453,180.58,180.53,3.05]
[1753835444341,4.42318453,180.57,180.56,5.5391]
[1753835444541,4.42318453,180.58,180.56,5.5391]
[1753835445144,2.98,180.57,180.56,5.5391]
[1753835445345,7.40318453,180.57,180.56,5.5391]
[1753835445942,2.98,180.57,180.56,5.5391]
[1753835447139,7.41426277,180.57,180.56,5.5391]
[1753835449252,2.98,180.56,180.47,3.05]
[1753835449443,4.43426277,180.55,180.47,3.05]
[1753835449648,2.98,180.54,180.47,3.05]
[1753835449950,2.98,180.54,180.53,8.59]
[1753835450340,2.98,180.54,180.53,5.54]
[1753835450550,7.42875067,180.54,180.53,5.54]
[1753835450739,7.42875067,180.54,180.5,3.05]
[1753835450943,124.0,180.59,180.49,3.05]
[1753835450944,4.45104259,180.53,180.49,3.05]
[1753835451140,2.98,180.51,180.5,3.05]
[1753835452052,10.11407981,180.57,180.53,5.5398]
[1753835452251,4.44951616,180.56,180.53,5.5398]
[1753835452549,4.44951616,180.55,180.54,5.5397]
[1753835453250,7.42951616,180.55,180.54,8.5897]
[1753835453648,7.42951616,180.55,180.54,5.5397]
[1753835454650,4.44951616,180.55,180.53,5.54]
[1753835454853,7.42951616,180.54,180.53,5.54]
[1753835456249,2.98,180.53,180.52,5.5402]
[1753835456448,7.42951616,180.53,180.52,5.5402]
[1753835457255,7.42951616,180.53,180.51,5.5405]
[1753835457549,7.42951616,180.52,180.51,5.5405]
[1753835460248,1.616e-05,180.52,180.51,8.5905]
[1753835460547,2.98,180.62,180.48,3.05]
[1753835461053,4.57527981,180.64,180.59,3.05]
[1753835461247,4.57527981,180.66,180.49,372.4]
[1753835461448,2.98,180.64,180.62,3.05]
[1753835461850,2.98,180.64,180.63,5.537]
[1753835462353,126.98,180.67,180.65,5.5363]
[1753835462650,2.98,180.67,180.53,3.05]
[1753835463252,2.98,180.67,180.61,3.05]
[1753835463651,2.98,180.71,180.61,3.05]
[1753835463854,2.98,180.71,180.7,5.5348]
[1753835464351,2.98,180.71,180.69,5.5351]
[1753835464546,2.98,180.7,180.69,5.5351]
[1753835464747,2.98,180.7,180.69,8.5851]
[1753835464949,2.98,180.75,180.69,3.05]
[1753835466055,2.98,180.75,180.7,5.5346]
[1753835466458,5.5333,180.75,180.69,3.05]
[1753835466655,2.98,180.74,180.66,3.05]
[1753835468360,2.98,180.72,180.68,5.5354]
[1753835469363,8.5143,180.72,180.67,5.5357]
[1753835469562,2.98,180.71,180.67,8.5857]
[1753835469763,2.98,180.71,180.67,3.05]
[1753835470458,2.98,180.72,180.58,3.05]
[1753835471058,2.98,180.72,180.69,5.5349]
[1753835471257,124.0,180.76,180.69,8.5849]
[1753835471560,2.98,180.74,180.69,5.5349]
[1753835471962,2.98,180.74,180.69,8.5849]
[1753835472560,124.0,180.76,180.57,11.0773]
[1753835472762,2.98,180.75,180.6,3.05]
[1753835472957,2.98,180.77,180.6,3.05]
[1753835473450,2.98,180.76,180.6,3.05]
[1753835473652,2.98,180.76,180.74,5.5334]
[1753835473956,3.13,180.75,180.74,8.5034]
[1753835474957,3.13,180.75,180.74,5.5334]
[1753835475357,3.13,180.74,180.71,2.97]
[1753835475555,3.13,180.78,180.69,2.97]
[1753835476152,3.13,180.77,180.72,8.5042]
[1753835476557,3.13,180.77,180.73,5.5339]
[1753835476860,3.13,180.77,180.73,2.97]
[1753835477163,129.5321,180.79,180.62,372.16]
[1753835477361,3.13,180.76,180.74,2.97]
[1753835477556,3.13,180.76,180.62,372.16]
[1753835477557,3.13,180.79,180.75,2.97]
[1753835477863,3.13,180.82,180.77,2.97]
[1753835478054,124.0,180.81,180.78,2.97]
[1753835478254,3.13,180.79,180.78,2.97]
[1753835478863,3.13,180.79,180.65,2.97]
[1753835479167,3.13,180.81,180.65,2.97]
[1753835479362,118.78,180.83,180.62,372.16]
[1753835479363,3.13,180.83,180.8,5.5318]
[1753835479764,127.13,180.83,180.8,5.5318]
[1753835480066,3.13,180.81,180.8,5.5318]
[1753835480656,3.13,180.81,180.67,2.97]
[1753835481362,3.13,180.83,180.67,2.97]
[1753835482165,5.5322,180.79,180.74,5.5334]
[1753835482363,3.13,180.78,180.74,5.5334]
[1753835482662,5.5315,180.81,180.75,5.533]
[1753835482960,3.13,180.8,180.65,2.97]
[1753835483464,5.5309,180.83,180.78,5.5323]
[1753835483663,3.13,180.79,180.78,5.5323]
[1753835483964,3.13,180.79,180.64,95.24588092]
[1753835484156,3.13,180.79,180.66,2.97]
[1753835484565,3.13,180.79,180.74,5.5334]
[1753835485361,3.13,180.78,180.74,5.5334]
[1753835485959,3.13,180.83,180.71,2.97]
[1753835486155,3.13,180.83,180.65,2.97]
[1753835486359,3.13,180.83,180.64,87.14268092]
[1753835486559,3.13,180.83,180.65,2.97]
[1753835486756,118.88,180.82,180.65,2.97]
[1753835487155,3.13,180.81,180.63,2.97]
[1753835487356,3.13,180.81,180.63,14.0437]
[1753835487556,3.13,180.81,180.74,5.5336]
[1753835487756,3.13,180.8,180.71,2.97]
[1753835488966,3.13,180.8,180.76,5.5328]
[1753835489167,3.13,180.8,180.69,2.97]
[1753835489966,124.0,180.84,180.69,2.97]
[1753835490262,3.13,180.83,180.69,2.97]
[1753835490468,5.5331,180.76,180.72,5.534]
[1753835490668,3.13,180.75,180.72,5.534]
[1753835492067,3.13,180.75,180.69,2.97]
[1753835493470,3.13,180.74,180.69,2.97]
[1753835493667,3.13,180.74,180.71,5.5343]
[1753835494563,3.13,180.73,180.66,2.97]
[1753835494762,3.13,180.73,180.64,2.97]
[1753835494971,3.13,180.73,180.61,2.97]
[1753835495162,3.13,180.73,180.59,2.97]
[1753835495669,3.13,180.73,180.64,5.5364]
[1753835495870,3.13,180.73,180.61,2.97]
[1753835496269,5.5361,180.66,180.62,5.5372]
[1753835496569,3.13,180.65,180.62,5.5372]
[1753835496770,8.6665,180.65,180.61,5.5375]
[1753835496967,3.13,180.64,180.61,5.5375]
[1753835497768,3.13,180.64,180.62,5.5371]
[1753835498071,5.5361,180.66,180.62,5.5371]
[1753835498264,3.13,180.64,180.62,8.5071]
[1753835498672,3.13,180.65,180.62,5.5371]
[1753835498872,3.13,180.64,180.59,2.97]
[1753835499074,3.13,180.64,180.57,2.97]
[1753835499265,8.6669,180.64,180.6,5.5376]
[1753835499574,3.13,180.63,180.6,5.5376]
[1753835499771,3.13,180.63,180.57,2.97]
[1753835500772,3.13,180.62,180.6,2.97]
[1753835500966,3.13,180.75,180.55,2.97]
[1753835501174,3.13,180.73,180.64,5.5364]
[1753835501372,3.13,180.71,180.54,119.06]
[1753835501673,3.13,180.71,180.65,2.97]
[1753835502076,3.13,180.69,180.65,2.97]
[1753835502378,3.13,180.69,180.66,5.5358]
[1753835503275,3.13,180.68,180.67,5.5357]
[1753835504176,3.11,180.72,180.68,3.01]
[1753835504378,3.11,180.74,180.56,12.21184535]
[1753835504577,5.5346,180.71,180.66,5.5358]
[1753835504782,3.11,180.7,180.66,5.5358]
[1753835505375,8.6449,180.7,180.66,5.5358]
[1753835505580,3.11,180.69,180.66,5.5358]
[1753835506488,5.5352,180.69,180.64,3.01]
[1753835506678,3.11,180.68,180.64,3.01]
[1753835507885,3.11,180.67,180.64,3.01]
[1753835508185,3.11,180.66,180.64,3.01]
[1753835508386,3.11,180.66,180.65,5.5363]
[1753835508882,3.11,180.67,180.63,3.01]
[1753835509389,3.11,180.67,180.64,3.5101743]
[1753835509587,3.11,180.67,180.63,3.01]
[1753835509786,3.11,180.67,180.64,3.5101743]
[1753835509988,3.11,180.67,180.63,3.01]
[1753835510185,3.11,180.67,180.64,3.5101743]
[1753835510382,3.11,180.66,180.64,8.5464]
[1753835510784,3.11,180.66,180.65,3.01]
[1753835511387,3.11,180.66,180.64,5.5364]
[1753835511589,3.11,180.65,180.64,8.5464]
[1753835511788,3.11,180.65,180.64,12.05611363]
[1753835512288,3.11,180.78,180.65,3.01]
[1753835512588,3.11,180.76,180.65,3.01]